[Event "Titled Tuesday Blitz October 26 2021"]
[White "Maksimovic, Bojan"]
[Black "Golubev, Mikhail"]
[WhiteFideId "14408120"]
[BlackFideId "14100983"]
[WhiteElo "2439"]
[BlackElo "2374"]
[Result "1-0"]
[Round "09"]
[TimeControl "180+1"]
[Date "2021.10.26"]
[WhiteClock "0:00:08"]
[BlackClock "0:00:03"]

1. Nf3 {[%clk 0:03:00]}  d6 {[%clk 0:02:59]} 2. d4 {[%clk 0:03:00]}  Nf6 {[%clk 0:02:59]} 3. Nc3 {[%clk 0:02:57]}  Nbd7 {[%clk 0:02:58]} 4. e4 {[%clk 0:02:57]}  e5 {[%clk 0:02:58]} 5. Bc4 {[%clk 0:02:57]}  Be7 {[%clk 0:02:58]} 6. O-O {[%clk 0:02:57]}  O-O {[%clk 0:02:58]} 7. Re1 {[%clk 0:02:58]}  c6 {[%clk 0:02:55]} 8. a4 {[%clk 0:02:57]}  a5 {[%clk 0:02:53]} 9. h3 {[%clk 0:02:57]}  exd4 {[%clk 0:02:48]} 10. Nxd4 {[%clk 0:02:58]}  Nc5 {[%clk 0:02:48]} 11. Bf4 {[%clk 0:02:26]}  Ne6 {[%clk 0:02:27]} 12. Bh2 {[%clk 0:02:24]}  d5 {[%clk 0:02:02]} 13. exd5 {[%clk 0:02:20]}  cxd5 {[%clk 0:02:02]} 14. Bf1 {[%clk 0:01:56]}  Bc5 {[%clk 0:01:57]} 15. Ncb5 {[%clk 0:01:43]}  Ne4 {[%clk 0:01:49]} 16. c3 {[%clk 0:01:31]}  Bd7 {[%clk 0:01:38]} 17. Re2 {[%clk 0:01:13]}  Bxb5 {[%clk 0:01:30]} 18. Nxb5 {[%clk 0:01:14]}  Qf6 {[%clk 0:01:17]} 19. Qe1 {[%clk 0:01:09]}  Nf4 {[%clk 0:01:10]} 20. Bxf4 {[%clk 0:00:41]}  Qxf4 {[%clk 0:01:10]} 21. Nd4 {[%clk 0:00:41]}  Ra6 {[%clk 0:01:04]} 22. g3 {[%clk 0:00:34]}  Qe5 {[%clk 0:00:55]} 23. Rd1 {[%clk 0:00:33]}  Rf6 {[%clk 0:00:48]} 24. Bg2 {[%clk 0:00:32]}  Re8 {[%clk 0:00:42]} 25. f3 {[%clk 0:00:27]}  Rfe6 {[%clk 0:00:17]} 26. fxe4 {[%clk 0:00:26]}  dxe4 {[%clk 0:00:18]} 27. Rxe4 {[%clk 0:00:23]}  Qc7 {[%clk 0:00:18]} 28. Rxe6 {[%clk 0:00:17]}  Rxe6 {[%clk 0:00:18]} 29. Qf2 {[%clk 0:00:18]}  Rf6 {[%clk 0:00:18]} 30. Qe3 {[%clk 0:00:17]}  g6 {[%clk 0:00:13]} 31. Kh2 {[%clk 0:00:16]}  Bd6 {[%clk 0:00:13]} 32. Ne2 {[%clk 0:00:14]}  Re6 {[%clk 0:00:13]} 33. Qf2 {[%clk 0:00:14]}  Kg7 {[%clk 0:00:12]} 34. Bd5 {[%clk 0:00:13]}  Rf6 {[%clk 0:00:12]} 35. Qg2 {[%clk 0:00:13]}  Be5 {[%clk 0:00:12]} 36. Rf1 {[%clk 0:00:12]}  Rxf1 {[%clk 0:00:08]} 37. Qxf1 {[%clk 0:00:13]}  h5 {[%clk 0:00:08]} 38. h4 {[%clk 0:00:13]}  Qe7 {[%clk 0:00:08]} 39. Qf3 {[%clk 0:00:13]}  Qxh4+ {[%clk 0:00:08]} 40. Kg2 {[%clk 0:00:13]}  Qe7 {[%clk 0:00:08]} 41. Bxb7 {[%clk 0:00:13]}  Qg5 {[%clk 0:00:06]} 42. Bd5 {[%clk 0:00:13]}  f5 {[%clk 0:00:05]} 43. Nf4 {[%clk 0:00:12]}  Kh6 {[%clk 0:00:06]} 44. Qe3 {[%clk 0:00:12]}  h4 {[%clk 0:00:06]} 45. Qxe5 {[%clk 0:00:09]}  Qxg3+ {[%clk 0:00:05]} 46. Kf1 {[%clk 0:00:10]}  h3 {[%clk 0:00:05]} 47. Qh8+ {[%clk 0:00:09]}  Kg5 {[%clk 0:00:05]} 48. Nxh3+ {[%clk 0:00:10]}  Kg4 {[%clk 0:00:06]} 49. Nf2+ {[%clk 0:00:10]}  Kg5 {[%clk 0:00:06]} 50. Qd8+ {[%clk 0:00:09]}  Kh6 {[%clk 0:00:05]} 51. Qf8+ {[%clk 0:00:10]}  Kg5 {[%clk 0:00:05]} 52. Qd8+ {[%clk 0:00:10]}  Kh6 {[%clk 0:00:05]} 53. Qxa5 {[%clk 0:00:10]}  f4 {[%clk 0:00:03]} 54. Qc7 {[%clk 0:00:08]} 1-0


[Site "https://www.chess.com"]

[Event "Titled Tuesday Blitz October 26 2021"]
[White "Mamedyarov, Shakhriyar"]
[Black "Zierk, Steven"]
[WhiteFideId "13401319"]
[BlackFideId "2034255"]
[WhiteElo "2754"]
[BlackElo "2494"]
[Result "1-0"]
[Round "09"]
[TimeControl "180+1"]
[Date "2021.10.26"]
[WhiteClock "0:00:10"]
[BlackClock "0:00:04"]

1. e4 {[%clk 0:03:00]}  c5 {[%clk 0:02:56]} 2. a3 {[%clk 0:02:56]}  Nf6 {[%clk 0:02:54]} 3. e5 {[%clk 0:02:51]}  Nd5 {[%clk 0:02:54]} 4. d4 {[%clk 0:02:49]}  cxd4 {[%clk 0:02:53]} 5. Qxd4 {[%clk 0:02:48]}  e6 {[%clk 0:02:53]} 6. Nf3 {[%clk 0:02:47]}  Nc6 {[%clk 0:02:52]} 7. Qe4 {[%clk 0:02:47]}  f5 {[%clk 0:02:52]} 8. exf6 {[%clk 0:02:47]}  Nxf6 {[%clk 0:02:51]} 9. Qh4 {[%clk 0:02:47]}  Be7 {[%clk 0:02:45]} 10. Bd3 {[%clk 0:02:42]}  O-O {[%clk 0:02:27]} 11. Nc3 {[%clk 0:02:36]}  d5 {[%clk 0:02:25]} 12. Bg5 {[%clk 0:02:35]}  h6 {[%clk 0:02:07]} 13. Bxh6 {[%clk 0:02:32]}  gxh6 {[%clk 0:02:08]} 14. Qg3+ {[%clk 0:02:32]}  Kh8 {[%clk 0:02:05]} 15. Qg6 {[%clk 0:02:20]}  Qe8 {[%clk 0:01:24]} 16. Qxh6+ {[%clk 0:02:18]}  Kg8 {[%clk 0:01:24]} 17. Qg5+ {[%clk 0:01:28]}  Kh8 {[%clk 0:01:21]} 18. Nh4 {[%clk 0:01:15]}  Qh5 {[%clk 0:01:03]} 19. Ng6+ {[%clk 0:01:14]}  Kg7 {[%clk 0:01:02]} 20. Qxh5 {[%clk 0:01:15]}  Nxh5 {[%clk 0:01:02]} 21. Nxf8 {[%clk 0:01:15]}  Bxf8 {[%clk 0:00:57]} 22. g3 {[%clk 0:01:11]}  Nf6 {[%clk 0:00:56]} 23. O-O-O {[%clk 0:01:04]}  e5 {[%clk 0:00:55]} 24. Rhe1 {[%clk 0:01:03]}  Bg4 {[%clk 0:00:50]} 25. Be2 {[%clk 0:01:03]}  Be6 {[%clk 0:00:49]} 26. Bb5 {[%clk 0:01:00]}  Bd6 {[%clk 0:00:45]} 27. Bc4 {[%clk 0:00:32]}  Bg4 {[%clk 0:00:34]} 28. Rd2 {[%clk 0:00:28]}  Nd4 {[%clk 0:00:13]} 29. Nxd5 {[%clk 0:00:27]}  Nf3 {[%clk 0:00:12]} 30. Nxf6 {[%clk 0:00:26]}  Nxd2 {[%clk 0:00:13]} 31. Nxg4 {[%clk 0:00:21]}  Nxc4 {[%clk 0:00:13]} 32. Rd1 {[%clk 0:00:22]}  Bc5 {[%clk 0:00:11]} 33. Rd7+ {[%clk 0:00:21]}  Kg6 {[%clk 0:00:12]} 34. b3 {[%clk 0:00:19]}  Bxa3+ {[%clk 0:00:12]} 35. Kb1 {[%clk 0:00:19]}  Nd6 {[%clk 0:00:12]} 36. Nxe5+ {[%clk 0:00:18]}  Kf5 {[%clk 0:00:12]} 37. Nd3 {[%clk 0:00:18]}  Ne4 {[%clk 0:00:13]} 38. Ka2 {[%clk 0:00:16]}  Bf8 {[%clk 0:00:11]} 39. Rxb7 {[%clk 0:00:16]}  a5 {[%clk 0:00:11]} 40. f3 {[%clk 0:00:15]}  Nd2 {[%clk 0:00:10]} 41. Rb5+ {[%clk 0:00:14]}  Kf6 {[%clk 0:00:10]} 42. f4 {[%clk 0:00:14]}  a4 {[%clk 0:00:10]} 43. b4 {[%clk 0:00:15]}  Ne4 {[%clk 0:00:09]} 44. Rb6+ {[%clk 0:00:15]}  Kf5 {[%clk 0:00:09]} 45. Rc6 {[%clk 0:00:15]}  a3 {[%clk 0:00:08]} 46. b5 {[%clk 0:00:13]}  Rb8 {[%clk 0:00:07]} 47. b6 {[%clk 0:00:13]}  Kg4 {[%clk 0:00:06]} 48. Ne5+ {[%clk 0:00:11]}  Kf5 {[%clk 0:00:06]} 49. Nd7 {[%clk 0:00:11]}  Rd8 {[%clk 0:00:05]} 50. Nxf8 {[%clk 0:00:11]}  Rxf8 {[%clk 0:00:06]} 51. Kxa3 {[%clk 0:00:12]}  Nf6 {[%clk 0:00:04]} 52. c4 {[%clk 0:00:11]}  Ke4 {[%clk 0:00:04]} 53. Kb4 {[%clk 0:00:11]}  Nd7 {[%clk 0:00:04]} 54. Rd6 {[%clk 0:00:10]}  Rf7 {[%clk 0:00:04]} 55. Kb5 {[%clk 0:00:10]} 1-0


[Site "https://www.chess.com"]

[Event "Titled Tuesday Blitz October 26 2021"]
[White "Obolenskikh, Dmitry"]
[Black "Svane, Rasmus"]
[WhiteFideId "4156013"]
[BlackFideId "4657101"]
[WhiteElo "2541"]
[BlackElo "2643"]
[Result "0-1"]
[Round "09"]
[TimeControl "180+1"]
[Date "2021.10.26"]
[WhiteClock "0:00:39"]
[BlackClock "0:00:58"]

1. Nf3 {[%clk 0:03:00]}  d5 {[%clk 0:02:58]} 2. e3 {[%clk 0:03:00]}  Nf6 {[%clk 0:02:57]} 3. c4 {[%clk 0:03:01]}  e6 {[%clk 0:02:58]} 4. b3 {[%clk 0:03:00]}  c5 {[%clk 0:02:57]} 5. Bb2 {[%clk 0:03:00]}  Nc6 {[%clk 0:02:57]} 6. cxd5 {[%clk 0:03:00]}  exd5 {[%clk 0:02:58]} 7. Nc3 {[%clk 0:02:58]}  Bg4 {[%clk 0:02:38]} 8. Rc1 {[%clk 0:02:54]}  Rc8 {[%clk 0:02:37]} 9. h3 {[%clk 0:02:45]}  Bh5 {[%clk 0:02:36]} 10. Na4 {[%clk 0:02:26]}  Ne4 {[%clk 0:01:50]} 11. Be2 {[%clk 0:02:14]}  d4 {[%clk 0:01:26]} 12. Qc2 {[%clk 0:01:25]}  Bg6 {[%clk 0:01:23]} 13. Bd3 {[%clk 0:01:18]}  Nb4 {[%clk 0:01:03]} 14. Bb5+ {[%clk 0:01:17]}  Ke7 {[%clk 0:01:03]} 15. Qd1 {[%clk 0:01:01]}  a6 {[%clk 0:01:03]} 16. Bf1 {[%clk 0:00:40]}  b5 {[%clk 0:01:02]} 17. Nxc5 {[%clk 0:00:40]}  Nxc5 {[%clk 0:01:00]} 18. Nxd4 {[%clk 0:00:39]}  Ncd3+ {[%clk 0:00:58]} 0-1


[Site "https://www.chess.com"]

[Event "Titled Tuesday Blitz October 26 2021"]
[White "Obregon, Andres Carlos"]
[Black "Baskin, Robert"]
[WhiteFideId "111724"]
[BlackFideId "24662402"]
[WhiteElo "2572"]
[BlackElo "2521"]
[Result "1/2-1/2"]
[Round "09"]
[TimeControl "180+1"]
[Date "2021.10.26"]
[WhiteClock "0:00:47"]
[BlackClock "0:00:07"]

1. c4 {[%clk 0:03:00]}  f5 {[%clk 0:02:58]} 2. d4 {[%clk 0:02:57]}  Nf6 {[%clk 0:02:57]} 3. Nc3 {[%clk 0:02:55]}  d6 {[%clk 0:02:57]} 4. Nf3 {[%clk 0:02:50]}  g6 {[%clk 0:02:57]} 5. g3 {[%clk 0:02:47]}  Bg7 {[%clk 0:02:57]} 6. Bg2 {[%clk 0:02:45]}  O-O {[%clk 0:02:57]} 7. O-O {[%clk 0:02:41]}  Qe8 {[%clk 0:02:57]} 8. d5 {[%clk 0:02:39]}  Na6 {[%clk 0:02:46]} 9. Rb1 {[%clk 0:02:36]}  Bd7 {[%clk 0:02:43]} 10. Nd4 {[%clk 0:02:33]}  c6 {[%clk 0:02:39]} 11. b3 {[%clk 0:02:30]}  Nc7 {[%clk 0:02:35]} 12. Bb2 {[%clk 0:02:27]}  c5 {[%clk 0:02:33]} 13. Nc2 {[%clk 0:02:24]}  g5 {[%clk 0:02:34]} 14. e3 {[%clk 0:02:19]}  b5 {[%clk 0:02:33]} 15. Ba1 {[%clk 0:02:06]}  b4 {[%clk 0:02:23]} 16. Ne2 {[%clk 0:02:03]}  Qg6 {[%clk 0:02:21]} 17. Qd3 {[%clk 0:01:54]}  a5 {[%clk 0:02:16]} 18. f3 {[%clk 0:01:44]}  a4 {[%clk 0:02:13]} 19. h3 {[%clk 0:01:34]}  h5 {[%clk 0:01:34]} 20. e4 {[%clk 0:01:32]}  fxe4 {[%clk 0:01:28]} 21. fxe4 {[%clk 0:01:31]}  Nh7 {[%clk 0:01:26]} 22. Bxg7 {[%clk 0:01:29]}  Qxg7 {[%clk 0:01:24]} 23. Ne3 {[%clk 0:01:26]}  axb3 {[%clk 0:01:20]} 24. axb3 {[%clk 0:01:25]}  Ra2 {[%clk 0:01:17]} 25. Rxf8+ {[%clk 0:01:24]}  Nxf8 {[%clk 0:01:16]} 26. Rf1 {[%clk 0:01:12]}  Ng6 {[%clk 0:01:00]} 27. Nf5 {[%clk 0:01:12]}  Qb2 {[%clk 0:00:46]} 28. Rf2 {[%clk 0:01:12]}  Bxf5 {[%clk 0:00:37]} 29. exf5 {[%clk 0:01:11]}  Ne5 {[%clk 0:00:37]} 30. Qe3 {[%clk 0:01:11]}  Qd2 {[%clk 0:00:35]} 31. Qe4 {[%clk 0:00:59]}  Ne8 {[%clk 0:00:27]} 32. f6 {[%clk 0:00:47]}  Nxf6 {[%clk 0:00:27]} 33. Qf5 {[%clk 0:00:48]}  Qe3 {[%clk 0:00:20]} 34. Qe6+ {[%clk 0:00:48]}  Kf8 {[%clk 0:00:19]} 35. Qc8+ {[%clk 0:00:47]}  Kg7 {[%clk 0:00:19]} 36. Qe6 {[%clk 0:00:47]}  Kf8 {[%clk 0:00:11]} 37. Qc8+ {[%clk 0:00:46]}  Kf7 {[%clk 0:00:11]} 38. Qe6+ {[%clk 0:00:46]}  Ke8 {[%clk 0:00:11]} 39. Qc8+ {[%clk 0:00:46]}  Kf7 {[%clk 0:00:11]} 40. Qe6+ {[%clk 0:00:47]}  Kf8 {[%clk 0:00:07]} 1/2-1/2


[Site "https://www.chess.com"]

[Event "Titled Tuesday Blitz October 26 2021"]
[White "Rozman, Levy"]
[Black "Sonis, Francesco"]
[WhiteFideId "2039877"]
[BlackFideId "895733"]
[WhiteElo "2376"]
[BlackElo "2373"]
[Result "0-1"]
[Round "09"]
[TimeControl "180+1"]
[Date "2021.10.26"]
[WhiteClock "0:01:06"]
[BlackClock "0:01:30"]

1. c4 {[%clk 0:03:00]}  Nf6 {[%clk 0:02:54]} 2. Nc3 {[%clk 0:03:00]}  e5 {[%clk 0:02:53]} 3. g3 {[%clk 0:02:59]}  d5 {[%clk 0:02:49]} 4. cxd5 {[%clk 0:02:59]}  Nxd5 {[%clk 0:02:50]} 5. Bg2 {[%clk 0:03:00]}  Nb6 {[%clk 0:02:50]} 6. Nf3 {[%clk 0:02:58]}  Nc6 {[%clk 0:02:50]} 7. O-O {[%clk 0:02:58]}  Be7 {[%clk 0:02:49]} 8. d3 {[%clk 0:02:57]}  O-O {[%clk 0:02:49]} 9. a3 {[%clk 0:02:57]}  a5 {[%clk 0:02:49]} 10. Be3 {[%clk 0:02:55]}  Be6 {[%clk 0:02:49]} 11. Rc1 {[%clk 0:02:48]}  a4 {[%clk 0:02:47]} 12. Ne4 {[%clk 0:02:42]}  Bb3 {[%clk 0:02:32]} 13. Qe1 {[%clk 0:02:38]}  Nd5 {[%clk 0:02:24]} 14. Nfd2 {[%clk 0:02:33]}  Nxe3 {[%clk 0:02:18]} 15. fxe3 {[%clk 0:02:34]}  Bd5 {[%clk 0:02:16]} 16. Bh3 {[%clk 0:02:18]}  g6 {[%clk 0:02:13]} 17. Nc3 {[%clk 0:02:13]}  Bg5 {[%clk 0:02:02]} 18. Qf2 {[%clk 0:02:06]}  Ne7 {[%clk 0:01:58]} 19. Nde4 {[%clk 0:02:01]}  Bxe4 {[%clk 0:01:39]} 20. Nxe4 {[%clk 0:02:01]}  Nd5 {[%clk 0:01:39]} 21. Nxg5 {[%clk 0:01:47]}  Qxg5 {[%clk 0:01:38]} 22. e4 {[%clk 0:01:09]}  Ne3 {[%clk 0:01:39]} 23. Rfe1 {[%clk 0:01:09]}  Ra6 {[%clk 0:01:31]} 24. Rxc7 {[%clk 0:01:06]}  Rf6 {[%clk 0:01:30]} 0-1


[Site "https://www.chess.com"]

[Event "Titled Tuesday Blitz October 26 2021"]
[White "Sadhwani, Raunak"]
[Black "Gaehwiler, Gabriel"]
[WhiteFideId "35093487"]
[BlackFideId "1314530"]
[WhiteElo "2517"]
[BlackElo "2320"]
[Result "1-0"]
[Round "09"]
[TimeControl "180+1"]
[Date "2021.10.26"]
[WhiteClock "0:01:07"]
[BlackClock "0:00:12"]

1. d4 {[%clk 0:02:58]}  Nf6 {[%clk 0:02:59]} 2. Nf3 {[%clk 0:02:58]}  g6 {[%clk 0:03:00]} 3. Nc3 {[%clk 0:02:58]}  d5 {[%clk 0:02:57]} 4. Bf4 {[%clk 0:02:58]}  Bg7 {[%clk 0:02:54]} 5. Nb5 {[%clk 0:02:59]}  Na6 {[%clk 0:02:54]} 6. e3 {[%clk 0:02:59]}  c6 {[%clk 0:02:53]} 7. Nc3 {[%clk 0:03:00]}  Nc7 {[%clk 0:02:53]} 8. Be2 {[%clk 0:03:00]}  Bg4 {[%clk 0:02:44]} 9. h3 {[%clk 0:02:59]}  Bxf3 {[%clk 0:02:44]} 10. Bxf3 {[%clk 0:03:00]}  Ne6 {[%clk 0:02:44]} 11. Bh2 {[%clk 0:02:55]}  Ng5 {[%clk 0:02:40]} 12. Be2 {[%clk 0:02:54]}  Nge4 {[%clk 0:02:39]} 13. Nxe4 {[%clk 0:02:54]}  Nxe4 {[%clk 0:02:40]} 14. O-O {[%clk 0:02:53]}  O-O {[%clk 0:02:40]} 15. c4 {[%clk 0:02:54]}  e6 {[%clk 0:02:35]} 16. Bd3 {[%clk 0:02:53]}  Nd6 {[%clk 0:02:33]} 17. c5 {[%clk 0:02:52]}  Nf5 {[%clk 0:02:28]} 18. Bxf5 {[%clk 0:02:47]}  exf5 {[%clk 0:02:24]} 19. b4 {[%clk 0:02:47]}  Re8 {[%clk 0:01:48]} 20. Rb1 {[%clk 0:02:46]}  b5 {[%clk 0:01:41]} 21. a4 {[%clk 0:02:45]}  a6 {[%clk 0:01:38]} 22. Ra1 {[%clk 0:02:44]}  Qc8 {[%clk 0:01:30]} 23. Qd2 {[%clk 0:02:42]}  Qb7 {[%clk 0:01:30]} 24. Ra2 {[%clk 0:02:41]}  h5 {[%clk 0:01:20]} 25. Rfa1 {[%clk 0:02:41]}  Kh7 {[%clk 0:01:19]} 26. Bd6 {[%clk 0:02:32]}  Bf6 {[%clk 0:01:16]} 27. Ra3 {[%clk 0:02:29]}  Be7 {[%clk 0:00:51]} 28. axb5 {[%clk 0:02:23]}  cxb5 {[%clk 0:00:50]} 29. Bh2 {[%clk 0:02:16]}  Bf8 {[%clk 0:00:42]} 30. Rc3 {[%clk 0:02:10]}  Re6 {[%clk 0:00:42]} 31. Qa2 {[%clk 0:02:05]}  Qc6 {[%clk 0:00:33]} 32. Ra3 {[%clk 0:02:05]}  Be7 {[%clk 0:00:29]} 33. Ra5 {[%clk 0:02:03]}  Bd8 {[%clk 0:00:27]} 34. Ra3 {[%clk 0:02:03]}  Be7 {[%clk 0:00:27]} 35. Be5 {[%clk 0:01:55]}  Kg8 {[%clk 0:00:23]} 36. Qb1 {[%clk 0:01:36]}  Kh7 {[%clk 0:00:22]} 37. R1a2 {[%clk 0:01:37]}  Kg8 {[%clk 0:00:19]} 38. Qd1 {[%clk 0:01:37]}  f6 {[%clk 0:00:17]} 39. Bh2 {[%clk 0:01:35]}  Kf7 {[%clk 0:00:18]} 40. Qa1 {[%clk 0:01:25]}  Qc8 {[%clk 0:00:15]} 41. Ra5 {[%clk 0:01:22]}  Qc6 {[%clk 0:00:13]} 42. R5a3 {[%clk 0:01:14]}  Qb7 {[%clk 0:00:13]} 43. Re2 {[%clk 0:01:07]}  Rc6 {[%clk 0:00:12]} 44. Qa2 {[%clk 0:01:08]}  Qd7 {[%clk 0:00:12]} 45. f3 {[%clk 0:01:06]}  Qe6 {[%clk 0:00:12]} 46. e4 {[%clk 0:01:06]}  dxe4 {[%clk 0:00:12]} 47. d5 {[%clk 0:01:07]} 1-0


[Site "https://www.chess.com"]

[Event "Titled Tuesday Blitz October 26 2021"]
[White "Samadov, Read"]
[Black "Piesik, Piotr"]
[WhiteFideId "13417444"]
[BlackFideId "1136194"]
[WhiteElo "2084"]
[BlackElo "2336"]
[Result "1-0"]
[Round "09"]
[TimeControl "180+1"]
[Date "2021.10.26"]
[WhiteClock "0:00:05"]
[BlackClock "0:00:11"]

1. d4 {[%clk 0:03:00]}  c5 {[%clk 0:02:56]} 2. d5 {[%clk 0:03:00]}  e5 {[%clk 0:02:56]} 3. e4 {[%clk 0:02:59]}  d6 {[%clk 0:02:57]} 4. Nc3 {[%clk 0:02:59]}  Be7 {[%clk 0:02:56]} 5. Nf3 {[%clk 0:02:55]}  a6 {[%clk 0:02:56]} 6. a4 {[%clk 0:02:52]}  Bg4 {[%clk 0:02:55]} 7. h3 {[%clk 0:02:46]}  Bxf3 {[%clk 0:02:55]} 8. Qxf3 {[%clk 0:02:47]}  Bg5 {[%clk 0:02:56]} 9. Bxg5 {[%clk 0:02:43]}  Qxg5 {[%clk 0:02:54]} 10. h4 {[%clk 0:02:43]}  Qf6 {[%clk 0:02:47]} 11. Qe3 {[%clk 0:02:29]}  Ne7 {[%clk 0:02:43]} 12. g3 {[%clk 0:02:28]}  O-O {[%clk 0:02:40]} 13. Be2 {[%clk 0:02:25]}  Nd7 {[%clk 0:02:39]} 14. a5 {[%clk 0:02:24]}  Rac8 {[%clk 0:02:24]} 15. Ra3 {[%clk 0:02:20]}  Rc7 {[%clk 0:02:20]} 16. O-O {[%clk 0:02:20]}  c4 {[%clk 0:02:15]} 17. Ra4 {[%clk 0:02:16]}  Rfc8 {[%clk 0:02:12]} 18. Rb4 {[%clk 0:02:15]}  Ng6 {[%clk 0:02:08]} 19. h5 {[%clk 0:02:12]}  Ngf8 {[%clk 0:02:06]} 20. f4 {[%clk 0:02:12]}  Qd8 {[%clk 0:02:00]} 21. Kg2 {[%clk 0:02:06]}  h6 {[%clk 0:01:59]} 22. Bg4 {[%clk 0:01:48]}  Rb8 {[%clk 0:01:51]} 23. Be2 {[%clk 0:01:41]}  Rc5 {[%clk 0:01:48]} 24. Rxc4 {[%clk 0:01:35]}  Rxc4 {[%clk 0:01:47]} 25. Bxc4 {[%clk 0:01:34]}  Qxa5 {[%clk 0:01:48]} 26. Be2 {[%clk 0:01:29]}  b5 {[%clk 0:01:38]} 27. Nd1 {[%clk 0:01:18]}  Qb6 {[%clk 0:01:35]} 28. Qxb6 {[%clk 0:01:16]}  Rxb6 {[%clk 0:01:35]} 29. Ne3 {[%clk 0:01:17]}  Nc5 {[%clk 0:01:28]} 30. Kf3 {[%clk 0:01:15]}  Nfd7 {[%clk 0:01:25]} 31. Ra1 {[%clk 0:01:13]}  Nf6 {[%clk 0:01:17]} 32. Bd3 {[%clk 0:01:00]}  Nxh5 {[%clk 0:01:13]} 33. b4 {[%clk 0:00:56]}  Na4 {[%clk 0:01:08]} 34. c4 {[%clk 0:00:53]}  Nf6 {[%clk 0:01:04]} 35. fxe5 {[%clk 0:00:52]}  dxe5 {[%clk 0:01:03]} 36. c5 {[%clk 0:00:53]}  Rb8 {[%clk 0:01:03]} 37. d6 {[%clk 0:00:49]}  g6 {[%clk 0:00:55]} 38. Nd5 {[%clk 0:00:48]}  Nxd5 {[%clk 0:00:45]} 39. exd5 {[%clk 0:00:48]}  Nc3 {[%clk 0:00:46]} 40. c6 {[%clk 0:00:28]}  Nxd5 {[%clk 0:00:45]} 41. c7 {[%clk 0:00:28]}  Nxc7 {[%clk 0:00:35]} 42. dxc7 {[%clk 0:00:27]}  Rc8 {[%clk 0:00:36]} 43. Rc1 {[%clk 0:00:25]}  f5 {[%clk 0:00:36]} 44. Ke3 {[%clk 0:00:24]}  Kf7 {[%clk 0:00:34]} 45. Rc6 {[%clk 0:00:22]}  h5 {[%clk 0:00:21]} 46. Bc2 {[%clk 0:00:10]}  Ke7 {[%clk 0:00:18]} 47. Rxg6 {[%clk 0:00:10]}  Rxc7 {[%clk 0:00:19]} 48. Bxf5 {[%clk 0:00:10]}  Rc3+ {[%clk 0:00:18]} 49. Ke4 {[%clk 0:00:10]}  Rc4+ {[%clk 0:00:17]} 50. Kxe5 {[%clk 0:00:10]}  Rxb4 {[%clk 0:00:17]} 51. Rxa6 {[%clk 0:00:10]}  Rb3 {[%clk 0:00:13]} 52. Ra7+ {[%clk 0:00:09]}  Kd8 {[%clk 0:00:12]} 53. Kd6 {[%clk 0:00:05]}  Ke8 {[%clk 0:00:12]} 54. Be6 {[%clk 0:00:05]}  Rd3+ {[%clk 0:00:11]} 55. Bd5 {[%clk 0:00:05]}  Kf8 {[%clk 0:00:11]} 56. Rf7+ {[%clk 0:00:05]}  Ke8 {[%clk 0:00:11]} 57. Rg7 {[%clk 0:00:05]} 1-0


[Site "https://www.chess.com"]

[Event "Titled Tuesday Blitz October 26 2021"]
[White "Siva Mahadevan"]
[Black "Alexakis, Dimitris"]
[WhiteFideId "25043153"]
[BlackFideId "4277023"]
[WhiteElo "2203"]
[BlackElo "2409"]
[Result "1-0"]
[Round "09"]
[TimeControl "180+1"]
[Date "2021.10.26"]
[WhiteClock "0:01:11"]
[BlackClock "0:00:08"]

1. e4 {[%clk 0:03:00]}  c5 {[%clk 0:02:56]} 2. Nf3 {[%clk 0:03:00]}  Nc6 {[%clk 0:02:57]} 3. Nc3 {[%clk 0:03:00]}  Nf6 {[%clk 0:02:57]} 4. e5 {[%clk 0:03:00]}  Ng4 {[%clk 0:02:56]} 5. Qe2 {[%clk 0:02:58]}  Qc7 {[%clk 0:02:57]} 6. Nd5 {[%clk 0:02:58]}  Qb8 {[%clk 0:02:56]} 7. d4 {[%clk 0:02:57]}  cxd4 {[%clk 0:02:37]} 8. Bf4 {[%clk 0:02:56]}  e6 {[%clk 0:02:36]} 9. h3 {[%clk 0:02:54]}  exd5 {[%clk 0:02:27]} 10. hxg4 {[%clk 0:02:53]}  Bb4+ {[%clk 0:02:22]} 11. c3 {[%clk 0:02:52]}  dxc3 {[%clk 0:02:22]} 12. O-O-O {[%clk 0:02:53]}  Nd8 {[%clk 0:02:03]} 13. Rxd5 {[%clk 0:02:44]}  Ne6 {[%clk 0:02:01]} 14. Bg3 {[%clk 0:02:43]}  Qc7 {[%clk 0:01:58]} 15. Kb1 {[%clk 0:02:40]}  b6 {[%clk 0:01:55]} 16. Qc2 {[%clk 0:02:03]}  Bb7 {[%clk 0:01:25]} 17. Rd1 {[%clk 0:01:59]}  Rc8 {[%clk 0:01:19]} 18. Bb5 {[%clk 0:01:48]}  Nc5 {[%clk 0:01:10]} 19. e6 {[%clk 0:01:29]}  fxe6 {[%clk 0:00:34]} 20. Bxc7 {[%clk 0:01:28]}  Be4 {[%clk 0:00:34]} 21. Bxd7+ {[%clk 0:01:24]}  Ke7 {[%clk 0:00:31]} 22. Bd6+ {[%clk 0:01:24]}  Kf6 {[%clk 0:00:27]} 23. g5+ {[%clk 0:01:23]}  Kf5 {[%clk 0:00:23]} 24. g4+ {[%clk 0:01:12]}  Kxg4 {[%clk 0:00:09]} 25. Rdg1+ {[%clk 0:01:11]}  Kf5 {[%clk 0:00:08]} 26. Nh4# {[%clk 0:01:11]} 1-0


[Site "https://www.chess.com"]

[Event "Titled Tuesday Blitz October 26 2021"]
[White "Sviridov, Valery"]
[Black "Andreikin, Dmitry"]
[WhiteFideId "4120680"]
[BlackFideId "4158814"]
[WhiteElo "2454"]
[BlackElo "2736"]
[Result "1/2-1/2"]
[Round "09"]
[TimeControl "180+1"]
[Date "2021.10.26"]
[WhiteClock "0:01:49"]
[BlackClock "0:01:10"]

1. Nf3 {[%clk 0:03:00]}  g6 {[%clk 0:03:00]} 2. g3 {[%clk 0:03:00]}  Bg7 {[%clk 0:03:00]} 3. Bg2 {[%clk 0:03:00]}  c5 {[%clk 0:02:58]} 4. O-O {[%clk 0:03:00]}  Nc6 {[%clk 0:02:58]} 5. c4 {[%clk 0:03:00]}  Nh6 {[%clk 0:02:58]} 6. Nc3 {[%clk 0:02:57]}  Nf5 {[%clk 0:02:58]} 7. b3 {[%clk 0:02:56]}  O-O {[%clk 0:02:56]} 8. Bb2 {[%clk 0:02:56]}  b6 {[%clk 0:02:51]} 9. e3 {[%clk 0:02:54]}  Bb7 {[%clk 0:02:50]} 10. d3 {[%clk 0:02:54]}  e6 {[%clk 0:02:48]} 11. Qd2 {[%clk 0:02:30]}  d5 {[%clk 0:02:47]} 12. Ne2 {[%clk 0:02:30]}  dxc4 {[%clk 0:02:06]} 13. Bxg7 {[%clk 0:02:29]}  Nxg7 {[%clk 0:02:06]} 14. dxc4 {[%clk 0:02:27]}  Qc7 {[%clk 0:01:54]} 15. Rfd1 {[%clk 0:02:26]}  Rfd8 {[%clk 0:01:53]} 16. Qb2 {[%clk 0:02:21]}  Rxd1+ {[%clk 0:01:51]} 17. Rxd1 {[%clk 0:02:22]}  Rd8 {[%clk 0:01:51]} 18. Rxd8+ {[%clk 0:02:21]}  Qxd8 {[%clk 0:01:52]} 19. Qd2 {[%clk 0:02:17]}  Ne8 {[%clk 0:01:33]} 20. Qxd8 {[%clk 0:02:10]}  Nxd8 {[%clk 0:01:34]} 21. Nc3 {[%clk 0:02:10]}  Nd6 {[%clk 0:01:33]} 22. Nd2 {[%clk 0:02:08]}  Kf8 {[%clk 0:01:29]} 23. Bxb7 {[%clk 0:02:04]}  N8xb7 {[%clk 0:01:30]} 24. f4 {[%clk 0:02:03]}  f5 {[%clk 0:01:29]} 25. Kf2 {[%clk 0:02:01]}  Nd8 {[%clk 0:01:28]} 26. e4 {[%clk 0:01:56]}  Nc6 {[%clk 0:01:28]} 27. e5 {[%clk 0:01:56]}  Nf7 {[%clk 0:01:22]} 28. Nf3 {[%clk 0:01:55]}  Ke7 {[%clk 0:01:19]} 29. Ke3 {[%clk 0:01:55]}  Kd7 {[%clk 0:01:14]} 30. Kd3 {[%clk 0:01:50]}  Nb4+ {[%clk 0:01:13]} 31. Ke3 {[%clk 0:01:49]}  Nc2+ {[%clk 0:01:10]} 32. Kd3 {[%clk 0:01:48]}  Nb4+ {[%clk 0:01:11]} 33. Ke3 {[%clk 0:01:49]}  Nc2+ {[%clk 0:01:10]} 34. Kd3 {[%clk 0:01:49]}  Nb4+ {[%clk 0:01:10]} 1/2-1/2


[Site "https://www.chess.com"]